Workbook

Sheet Sheet1
A1: TODAY'S DATE | H1: PURCHASE REQUISITION NO. | BR1: =NOW() -> 45324.43593 | BS1: =HOUR(BR1) -> 10
A2: =TODAY() -> 2024-02-02 | H2: =U6 -> 1004662.226 | BR2: =NOW() -> 45324.43593 | BS2: =MINUTE(BR2) -> 27
U3: 1000000 | BS3: =SUM(BS1:BS2) -> 37
U5: =A2+A11+B11+D11+U29+V29+W29+X21+X22+X23+X24+X25+X26+X27+X28+AA20+AA21+AA22+AA23+AA24+AA25+AA26+AA27+AA28+W53+X53+AA53+AA56+Y21+Y22+Y23+Y24+Y25+Y26+Y27+Y28++Z21+Z22+Z23+Z24+Z25+Z26+Z27+Z28+AB20+AB21+AB22+AB23+AB24+AB25+AB26+AB27+AB28+X34+X35+X36+X37+X39+AA34+AA35+AA36+AA37+AA39+AD34+AD35+AD36+AD37+AA31+AD31+AH12+AO55+AP55+AQ55+AR55+AS55+AU55+AX55+BF29+BG29+BH29+BI29+X42+AA42+AD42+AO12:AP12+AR61+BN12+BS1+BS2+BS3+BS5+BV11-BW12+W5 -> 4662.225962 | V5: 156355.4456 | W5: =TODAY() -> 45324 | BS5: =STDEV(BS1:BS3) -> 13.65039682
A6: Procurement Services | U6: =SUM(U3:U5) -> 1004662.226 | CU6: 31887 | CV6: 32215 | CW6: 32777 | CX6: 38250 | CY6: 38617 | CZ6: 39391
CU7: 32173 | CV7: 32598 | CW7: 38107 | CX7: 38429 | CY7: 39388 | CZ7: =TODAY()-1 -> 45323
A8: Items in RED are required | G8: purchasing@albany.edu | CU8: =CU7-CU6 -> 286 | CV8: 383 | CW8: 5330 | CX8: 179 | CY8: 771 | CZ8: 5932 | DA8: =SUM(CU8:CZ8) -> 12881
A9: ENCUMBRANCE | K9: Populate Fiscal Year based on Fiscal Year, June 1st | AH9: =NOW() -> 45324.43593
A10: ACCOUNT | B10: SUB ACCOUNT | C10: FISCAL YEAR | D10: AMOUNT | E10: IDENTIFY IF APPLICABLE | AF10: 0.4791666667
C11: =IF(L15=2023,"2023-2024", IF(L15=2024,"2024-2025", IF(L15=2025,"2025-2026", IF(L15=2026,"2026-2027", IF(L15=2027,"2027-2028", IF(L15=2028,"2028-2029", IF(L15=2029,"2029-2030"))))))) -> 2023-2024 | D11: =SUM(I20:I28) -> 0 | L11: 7 | M11: month fiscal year starts | AF11: =AH9-AF10 -> 45323.95676 | AN11: =TODAY()*3.3479 -> 151740.2196 | BN11: =A11 -> 0 | BV11: =BT13-A2 -> -43390 | BW11: 27841
AH12: =IF(AF11<0,12346,AF11) -> 45323.95676 | AN12: =A11 -> 0 | AO12: =AN12-AN11 -> -151740.2196 | AP12: =IF(AO12>1,54,-47) -> -47 | BN12: =SQRT(BN11) -> 0 | BW12: =BW11-A2 -> -17483
A13: DELIVER ITEMS TO: (NAME/BLDG/RM/DEPT/EMAIL) | C13: DEPT PHONE | D13: PRINTED NAME OF AUTHORIZED ACCOUNT SIGNATURE | F13: AUTHORIZED ACCOUNT SIGNATURE (REQUIRED) | L13: =TODAY() -> 2024-02-02 | M13: todays date | N13: today() | O13: Formula for C11: IF(L15=2023,"2023-2024", IF(L15=2024,"2024-2025", IF(L15=2025,"2025-2026", IF(L15=2026,"2026-2027", IF(L15=2027,"2027-2028", IF(L15=2028,"2028-2029", IF(L15=2029,"2029-2030"))))))) | BT13: 1905-04-17
L15: =YEAR(L13)-1+(MONTH(L13)>=L11) -> 2023 | M15: fiscal year
A18: ITEM INFORMATION | AE18: 2014/2015
A19: DESCRIPTION | F19: QUANTITY | G19: UNIT PRICE | I19: UNIT TOTAL | AE19: 2010/2011
I20: =F20*G20 -> 0 | U20: =E20 -> 0 | V20: =F20 -> 0 | W20: =I20 -> 0 | X20: =IF(LEN(TRIM(A20))>0,LEN(TRIM(A20))) -> FALSE | Y20: =IF(LEN(TRIM(E20))>0,LEN(TRIM(E20))) -> FALSE | Z20: =IF(LEN(TRIM(F20))>0,LEN(TRIM(F20))) -> FALSE | AA20: =IF(LEN(TRIM(G20))>0,LEN(TRIM(G20))) -> FALSE | AB20: =IF(LEN(TRIM(I20))>0,LEN(TRIM(I20))) -> 1 | AE20: 2009/2010 | AO20: =IF(LEN(TRIM(U20))>0,LEN(TRIM(U20))) -> 1 | AP20: =IF(LEN(TRIM(V20))>0,LEN(TRIM(V20))) -> 1 | AQ20: =IF(LEN(TRIM(W20))>0,LEN(TRIM(W20))) -> 1 | AR20: =IF(LEN(TRIM(X20))>0,LEN(TRIM(X20))) -> 5 | AS20: =IF(LEN(TRIM(Y20))>0,LEN(TRIM(Y20))) -> 5 | AT20: 5 | AU20: 5 | AZ20: =IF(X20,"jets win super bowl","vikings win super bowl") -> vikings win super bowl | BA20: =IF(Y20,"blazzing saddles","young frankenstein") -> young frankenstein | BB20: =IF(Z20,"jets win super bowl","vikings win super bowl") -> vikings win super bowl | BC20: =IF(AA20,"blazzing saddles","young frankenstein") -> young frankenstein | BF20: =IF(LEN(TRIM(AZ20))>0,LEN(TRIM(AZ20))) -> 22 | BG20: =IF(LEN(TRIM(BA20))>0,LEN(TRIM(BA20))) -> 18 | BH20: =IF(LEN(TRIM(BB20))>0,LEN(TRIM(BB20))) -> 22 | BI20: =IF(LEN(TRIM(BC20))>0,LEN(TRIM(BC20))) -> 18
I21: 0 | U21: =E21 -> 0 | V21: =F21 -> 0 | W21: =I21 -> 0 | X21: =IF(LEN(TRIM(A21))>0,LEN(TRIM(A21))) -> FALSE | Y21: =IF(LEN(TRIM(E21))>0,LEN(TRIM(E21))) -> FALSE | Z21: =IF(LEN(TRIM(F21))>0,LEN(TRIM(F21))) -> FALSE | AA21: =IF(LEN(TRIM(G21))>0,LEN(TRIM(G21))) -> FALSE | AB21: =IF(LEN(TRIM(I21))>0,LEN(TRIM(I21))) -> 1 | AE21: 2008/2009 | AO21: =IF(LEN(TRIM(U21))>0,LEN(TRIM(U21))) -> 1 | AP21: 1 | AQ21: 1 | AR21: 5 | AS21: 5 | AT21: 5 | AU21: 5 | AZ21: =IF(X21,"jets win super bowl","vikings win super bowl") -> vikings win super bowl | BA21: =IF(Y21,"blazzing saddles","young frankenstein") -> young frankenstein | BB21: =IF(Z21,"jets win super bowl","vikings win super bowl") -> vikings win super bowl | BC21: =IF(AA21,"blazzing saddles","young frankenstein") -> young frankenstein | BF21: =IF(LEN(TRIM(AZ21))>0,LEN(TRIM(AZ21))) -> 22 | BG21: =IF(LEN(TRIM(BA21))>0,LEN(TRIM(BA21))) -> 18 | BH21: =IF(LEN(TRIM(BB21))>0,LEN(TRIM(BB21))) -> 22 | BI21: =IF(LEN(TRIM(BC21))>0,LEN(TRIM(BC21))) -> 18
I22: 0 | U22: 0 | V22: 0 | W22: 0 | X22: FALSE | Y22: FALSE | Z22: FALSE | AA22: FALSE | AB22: 1 | AE22: 2007/2008 | AO22: 1 | AP22: 1 | AQ22: 1 | AR22: 5 | AS22: 5 | AT22: 5 | AU22: 5 | AZ22: vikings win super bowl | BA22: young frankenstein | BB22: vikings win super bowl | BC22: young frankenstein | BF22: 22 | BG22: 18 | BH22: 22 | BI22: 18
I23: 0 | U23: 0 | V23: 0 | W23: 0 | X23: FALSE | Y23: FALSE | Z23: FALSE | AA23: FALSE | AB23: 1 | AO23: 1 | AP23: 1 | AQ23: 1 | AR23: 5 | AS23: 5 | AT23: 5 | AU23: 5 | AZ23: vikings win super bowl | BA23: young frankenstein | BB23: vikings win super bowl | BC23: young frankenstein | BF23: 22 | BG23: 18 | BH23: 22 | BI23: 18
I24: 0 | U24: 0 | V24: 0 | W24: 0 | X24: FALSE | Y24: FALSE | Z24: FALSE | AA24: FALSE | AB24: 1 | AO24: 1 | AP24: 1 | AQ24: 1 | AR24: 5 | AS24: 5 | AT24: 5 | AU24: 5 | AZ24: vikings win super bowl | BA24: young frankenstein | BB24: vikings win super bowl | BC24: young frankenstein | BF24: 22 | BG24: 18 | BH24: 22 | BI24: 18
I25: 0 | U25: 0 | V25: 0 | W25: 0 | X25: FALSE | Y25: FALSE | Z25: FALSE | AA25: FALSE | AB25: 1 | AO25: 1 | AP25: 1 | AQ25: 1 | AR25: 5 | AS25: 5 | AT25: 5 | AU25: 5 | AZ25: vikings win super bowl | BA25: young frankenstein | BB25: vikings win super bowl | BC25: young frankenstein | BF25: 22 | BG25: 18 | BH25: 22 | BI25: 18
I26: 0 | U26: 0 | V26: 0 | W26: 0 | X26: FALSE | Y26: FALSE | Z26: FALSE | AA26: FALSE | AB26: 1 | AO26: 1 | AP26: 1 | AQ26: 1 | AR26: 5 | AS26: 5 | AT26: 5 | AU26: 5 | AZ26: vikings win super bowl | BA26: young frankenstein | BB26: vikings win super bowl | BC26: young frankenstein | BF26: 22 | BG26: 18 | BH26: 22 | BI26: 18
I27: 0 | U27: 0 | V27: 0 | W27: 0 | X27: FALSE | Y27: FALSE | Z27: FALSE | AA27: FALSE | AB27: 1 | AO27: 1 | AP27: 1 | AQ27: 1 | AR27: 5 | AS27: 5 | AT27: 5 | AU27: 5 | AZ27: vikings win super bowl | BA27: young frankenstein | BB27: vikings win super bowl | BC27: young frankenstein | BF27: 22 | BG27: 18 | BH27: 22 | BI27: 18
I28: 0 | U28: 0 | V28: 0 | W28: 0 | X28: FALSE | Y28: FALSE | Z28: FALSE | AA28: FALSE | AB28: 1 | AO28: 1 | AP28: 1 | AQ28: 1 | AR28: 5 | AS28: 5 | AT28: 5 | AU28: 5 | AZ28: vikings win super bowl | BA28: young frankenstein | BB28: vikings win super bowl | BC28: young frankenstein | BF28: 22 | BG28: 18 | BH28: 22 | BI28: 18
A29: VENDOR INFORMATION | U29: =AVERAGE(U20:U28) -> 0 | V29: =AVERAGE(V20:V28) -> 0 | W29: =AVERAGE(W20:W28) -> 0 | AO29: 1 | AP29: 1 | AQ29: 1 | BF29: =SUM(BF20:BF28) -> 198 | BG29: =SUM(BG20:BG28) -> 162 | BH29: =SUM(BH20:BH28) -> 198 | BI29: =SUM(BI20:BI28) -> 162
A30: FEDERAL ID NO. or NYS SFS NO. | D30: FEDERAL ID NO. or NYS SFS NO. | G30: FEDERAL ID NO. or NYS SFS NO.
X31: =IF(LEN(TRIM(A31))>0,LEN(TRIM(A31))) -> FALSE | AA31: =IF(LEN(TRIM(D31))>0,LEN(TRIM(D31))) -> FALSE | AD31: =IF(LEN(TRIM(G31))>0,LEN(TRIM(G31))) -> FALSE | AR31: =IF(LEN(TRIM(X31))>0,LEN(TRIM(X31))) -> 5 | AU31: =IF(LEN(TRIM(AA31))>0,LEN(TRIM(AA31))) -> 5 | AX31: =IF(LEN(TRIM(AD31))>0,LEN(TRIM(AD31))) -> 5
A33: NAME AND ADDRESS | D33: NAME AND ADDRESS | G33: NAME AND ADDRESS
X34: =IF(LEN(TRIM(A34))>0,LEN(TRIM(A34))) -> FALSE | AA34: =IF(LEN(TRIM(D34))>0,LEN(TRIM(D34))) -> FALSE | AD34: =IF(LEN(TRIM(G34))>0,LEN(TRIM(G34))) -> FALSE | AR34: =IF(LEN(TRIM(X34))>0,LEN(TRIM(X34))) -> 5 | AU34: =IF(LEN(TRIM(AA34))>0,LEN(TRIM(AA34))) -> 5 | AX34: =IF(LEN(TRIM(AD34))>0,LEN(TRIM(AD34))) -> 5
X35: =IF(LEN(TRIM(A35))>0,LEN(TRIM(A35))) -> FALSE | AA35: =IF(LEN(TRIM(D35))>0,LEN(TRIM(D35))) -> FALSE | AD35: =IF(LEN(TRIM(G35))>0,LEN(TRIM(G35))) -> FALSE | AR35: =IF(LEN(TRIM(X35))>0,LEN(TRIM(X35))) -> 5 | AU35: =IF(LEN(TRIM(AA35))>0,LEN(TRIM(AA35))) -> 5 | AX35: =IF(LEN(TRIM(AD35))>0,LEN(TRIM(AD35))) -> 5
X36: =IF(LEN(TRIM(A36))>0,LEN(TRIM(A36))) -> FALSE | AA36: =IF(LEN(TRIM(D36))>0,LEN(TRIM(D36))) -> FALSE | AD36: =IF(LEN(TRIM(G36))>0,LEN(TRIM(G36))) -> FALSE | AR36: =IF(LEN(TRIM(X36))>0,LEN(TRIM(X36))) -> 5 | AU36: =IF(LEN(TRIM(AA36))>0,LEN(TRIM(AA36))) -> 5 | AX36: =IF(LEN(TRIM(AD36))>0,LEN(TRIM(AD36))) -> 5
X37: =IF(LEN(TRIM(A37))>0,LEN(TRIM(A37))) -> FALSE | AA37: =IF(LEN(TRIM(D37))>0,LEN(TRIM(D37))) -> FALSE | AD37: =IF(LEN(TRIM(G37))>0,LEN(TRIM(G37))) -> FALSE | AR37: =IF(LEN(TRIM(X37))>0,LEN(TRIM(X37))) -> 5 | AU37: =IF(LEN(TRIM(AA37))>0,LEN(TRIM(AA37))) -> 5 | AX37: =IF(LEN(TRIM(AD37))>0,LEN(TRIM(AD37))) -> 5
A38: PHONE | D38: PHONE | G38: PHONE
X39: =IF(LEN(TRIM(A39))>0,LEN(TRIM(A39))) -> FALSE | AA39: =IF(LEN(TRIM(D39))>0,LEN(TRIM(D39))) -> FALSE | AD39: =IF(LEN(TRIM(G39))>0,LEN(TRIM(G39))) -> FALSE | AR39: =IF(LEN(TRIM(X39))>0,LEN(TRIM(X39))) -> 5 | AU39: =IF(LEN(TRIM(AA39))>0,LEN(TRIM(AA39))) -> 5 | AX39: =IF(LEN(TRIM(AD39))>0,LEN(TRIM(AD39))) -> 5
A41: E-MAIL | D41: E-MAIL | G41: E-MAIL
X42: =IF(LEN(TRIM(A42))>0,LEN(TRIM(A42))) -> FALSE | AA42: =IF(LEN(TRIM(D42))>0,LEN(TRIM(D42))) -> FALSE | AD42: =IF(LEN(TRIM(G42))>0,LEN(TRIM(G42))) -> FALSE
A44: TO BE COMPLETED BY THE OFFICE OF PROCUREMENT SERVICES
A45: UNSPSC CODE: | B45: CHAR OBJECT: | C45: COMMODITY CODE: | D45: OGS CONTRACT: | E45: PSP CODE: | G45: CONTRACTOR TYPE: | I45: PURCHASE ORDER NO.:
A46: UNSPSC CODE: | B46: CHAR OBJECT: | C46: COMMODITY CODE: | D46: SOLE SOURCE: | E46: WBE: | G46: RECYCLE CODE: | I46: DISCRETIONARY:
I47: NON DISCRETIONARY:
A49: UNSPSC CODE: | B49: CHAR OBJECT: | C49: COMMODITY CODE: | D49: SINGLE SOURCE: | E49: MWBE: | G49: OC NO LINE 8: | H49: BUYER: | I49: FED PROD CODE:
I51: REMANUFACTURED CODE:
A53: =NOW() -> 2024-02-02T10:27:44.210 | B53: 1. THIS DOCUMENT IS FORMULA DRIVEN PLEASE COMPLETE ON LINE. DO NOT REUSE. | I53: =NOW() -> 2024-02-02T10:27:44.210 | W53: =IF(LEN(TRIM(A53))>0,LEN(TRIM(A53))) -> 16 | X53: =SQRT(W53) -> 4 | AA53: =NOW() -> 45324.43593 | AQ53: =IF(LEN(TRIM(W53))>0,LEN(TRIM(W53))) -> 2 | AR53: =IF(LEN(TRIM(X53))>0,LEN(TRIM(X53))) -> 1 | AU53: =IF(LEN(TRIM(AA53))>0,LEN(TRIM(AA53))) -> 16
B54: 2. DO NOT SAVE, MAKE COPIES, REUSE OR WHITE OUT INFORMATION.
AO55: =SUM(AO20:AO54) -> 10 | AP55: 10 | AQ55: 12 | AR55: 76 | AS55: 45 | AT55: 45 | AU55: 91 | AX55: =SUM(AX20:AX54) -> 30
AA56: =POWER(AA53,0.33) -> 34.40247553
AP60: =TODAY()*1.174 -> 53210.376
AP61: =D11 -> 0 | AQ61: =AP61-AP60 -> -53210.376 | AR61: =IF(AQ61>1,174,-132) -> -132
